Cogmind - Beta 13 @@@ ROGUE MODE // 2024.05.15 @ 17:01:01 // AFD2019/Pay2Buy Player: boggy Result: Destroyed by P-60 Hacker with Shock Rifle Performance ------------- Evolutions (0) 0 Regions Visited (3) 600 Robots Destroyed (33) 165 Value Destroyed (1026) 1026 Prototype IDs (2) 40 Alien Tech Used (0) 0 Bonus (55) 55 TOTAL SCORE: 1886 Bonus ------- High Alert Combat Kills 55 Cogmind --------- Core Integrity 0/250 Matter 269/300 Energy 250/250 System Corruption 2% Temperature Cool (0) Movement Rolling (90) Location -9/Recycling Parts ------- > --- POWER (1) -------- Ion Engine > --- PROPULSION (2) --- Armored Wheel Armored Wheel > --- UTILITY (2) ------ Core Shielding Medium Armor Plating > --- WEAPON (2) ------- EM Pulse Gun Rocket Launcher > --- INVENTORY (10) --- Light EM Pulse Cannon Light EM Pulse Cannon Heavy Assault Rifle Shotgun Scrap Shield Fragment (49) Scrap Shield Fragment (49) Scrap Shield Fragment (48) Scrap Shield Fragment (47) Scrap Shield Fragment (47) Scrap Shield Fragment (37) Peak State ------------ > --- POWER ------------ Ion Engine > --- PROPULSION ------- Armored Wheel Armored Wheel > --- UTILITY ---------- Medium Armor Plating Shield Generator > --- WEAPON ----------- Heavy Assault Rifle Shotgun > --- INVENTORY -------- Light EM Pulse Cannon Light EM Pulse Cannon Grenade Launcher Scrap Shield Fragment Scrap Shield Fragment Scrap Shield Fragment [Rating: 14] Favorites ----------- Power Ion Engine Engine Ion Engine Propulsion Armored Wheel Wheel Armored Wheel Utility Medium Armor Plating Device Shield Generator Protection Medium Armor Plating Weapon Light EM Pulse Cannon Energy Gun EM Shotgun Energy Cannon Light EM Pulse Cannon Ballistic Gun Heavy Assault Rifle Launcher Rocket Launcher Build | -11 -10 -10 -9 ------- Run | Yrd Mat Sub Rec Slots Evolved . | . . . . Power . | . . . . Propulsion . | . . . . Utility . | . . . . Weapon . | . . . . Parts Attached 10 | . 3 3 4 Power . | . . . . Engine . | . . . . Core . | . . . . Reactor . | . . . . Propulsion . | . . . . Treads . | . . . . Leg . | . . . . Wheel . | . . . . Hover . | . . . . Flight . | . . . . Utility . | . . . . Device . | . . . . Storage . | . . . . Processor . | . . . . Hackware . | . . . . Protection . | . . . . Artifact . | . . . . Weapon 10 | . 3 3 4 Energy Gun 2 | . 1 . 1 Energy Cannon 2 | . . . 2 Ballistic Gun 3 | . 2 1 . Ballistic Cannon . | . . . . Launcher 3 | . . 2 1 Special Weapon . | . . . . Impact Weapon . | . . . . Slashing Weapon . | . . . . Piercing Weapon . | . . . . Special Melee Weapon . | . . . . Unidentified Prototypes . | . . . . Parts Lost 7 | . 3 3 1 Power . | . . . . Propulsion . | . . . . Utility 4 | . 2 2 . Weapon 3 | . 1 1 1 Highest Loss Streak 1 | . 1 1 1 To Critical Strikes . | . . . . Average Slot Usage (%) 96 | . 95 95 99 Engine 14 | . 14 14 14 Wheel 28 | . 28 28 28 Device 6 | . 9 10 . Protection 18 | . 14 14 27 Energy Gun 3 | . 7 . 1 Energy Cannon 8 | . 16 . 8 Ballistic Gun 10 | . 4 23 6 Launcher 5 | . . 4 11 Naked Turns . | . . . . Heaviest Build 21 | 20 21 20 21 Greatest Support 24 | 24 24 24 24 Greatest Overweight (x) . | . . . . Average Overweight (x) . | . . . . Largest Inventory Capacity 10 | 10 10 10 10 Average Capacity 10 | 10 10 10 10 Most Carried 10 | . 2 9 10 Average Carried 5 | . . 6 8 Final Capacity 10 | 10 10 10 10 Final Carried 10 | . 2 9 10 Class Distribution -------------------- 59% | Subdweller-Mutant 40% | Mutant Dominant Class ---------------- Mutant | -10/Materials Subdweller-Mutant | -10/Subcaves Subdweller-Mutant | -9/Recycling Resources | -11 -10 -10 -9 ----------- Run | Yrd Mat Sub Rec Matter Collected 874 | . 297 212 365 Remotely . | . . . . Salvage Created 1298 | . 635 190 473 Parts . | . . . . Haulers Intercepted . | . . . . Recyclers Shooed . | . . . . Parts Field Recycled . | . . . . Retrieved Matter . | . . . . Parts Self-Destructed . | . . . . Prevented . | . . . . Kills | -11 -10 -10 -9 ------- Run | Yrd Mat Sub Rec Combat Hostiles Destroyed 20 | . 13 6 1 Guns 10 | . 5 4 1 Cannons 7 | . 7 . . AOE 3 | . 1 2 . Classes Destroyed 10 | . 8 . 2 Worker 3 | . 3 . . Builder 2 | . 1 . 1 Tunneler 1 | . 1 . . Recycler 3 | . . . 3 Operator 1 | . 1 . . Watcher 3 | . 3 . . Swarmer 6 | . 6 . . Grunt 4 | . 4 . . Sentry 1 | . . . 1 Subdweller 9 | . 3 6 . Best Kill Streak 5 | . 5 2 1 Combat Bots Only 4 | . 4 2 1 Max Kills in Single Turn 1 | . 1 1 1 Gunslinging . | . . . . Exploded 1 | . 1 1 . Melee . | . . . . Uniques/NPCs Destroyed . | . . . . Combat | -11 -10 -10 -9 -------- Run | Yrd Mat Sub Rec Hostile Shots Fired 114 | . 83 25 6 Missed 28 | . 18 9 1 Damage Taken 1289 | . 754 403 132 Core 256 | . 154 90 12 Absorbed by Shields 302 | . 175 127 . Redirected to Shielding 2 | . . . 2 Core Remaining (%) 100 | 100 . . . Volleys Fired 151 | . 65 32 54 Largest 2 | . 2 2 2 Hottest 112 | . 112 53 89 Shots Fired 252 | . 113 65 74 Gun 127 | . 50 56 21 Cannon 98 | . 63 . 35 Launcher 27 | . . 9 18 Special . | . . . . Kinetic 85 | . 14 56 15 Thermal . | . . . . Explosive 27 | . . 9 18 Electromagnetic 140 | . 99 . 41 Robot Hit Streak 15 | . 9 15 12 Robot Miss Streak 5 | . 5 3 1 Penetration Max . | . . . . Secondary Targets . | . . . . Shots Hit Robots 99 | . 50 29 20 Core Hits 53 | . 28 15 10 Critical Kills . | . . . . Critical Parts Destroyed . | . . . . Critical Strikes . | . . . . Melee Attacks . | . . . . Impact . | . . . . Slashing . | . . . . Piercing . | . . . . Sneak Attacks . | . . . . Combat Hostiles . | . . . . Follow-up Attacks . | . . . . Damage Inflicted 2287 | . 1126 655 506 Guns 885 | . 403 383 99 Cannons 853 | . 578 . 275 Explosions 528 | . 124 272 132 Melee . | . . . . Ramming 21 | . 21 . . Kinetic 592 | . 161 383 48 Thermal 186 | . 124 . 62 Explosive 342 | . . 272 70 Electromagnetic 1146 | . 820 . 326 Impact . | . . . . Slashing . | . . . . Piercing . | . . . . Highest Corruption 2 | . 2 2 2 Average Corruption 2 | . 2 2 2 Corruption Purged . | . . . . Corruption Blocked . | . . . . Effects 26 | . 9 8 9 Message Errors 7 | . 2 1 4 Matter Fused 6 | . 3 2 1 Heat Flow Errors 4 | . 1 1 2 Energy Discharges 1 | . . 1 . Data Loss (minor) 6 | . 3 1 2 Misfires 1 | . . 1 . Alerts 1 | . . 1 . Overload Shots . | . . . . Overflow Damage 37 | . 30 . 7 Projectiles 30 | . 30 . . Explosions 7 | . . . 7 Melee . | . . . . Knockbacks . | . . . . Impact . | . . . . Kinetic . | . . . . Secondary . | . . . . Self-Inflicted Damage 182 | . 119 . 63 Shots 5 | . 3 . 2 Rammed 1 | . 1 . . Targets Rammed 1 | . 1 . . Kicked . | . . . . Crushed . | . . . . Highest Temperature 281 | . 246 252 281 Average Temperature 70 | . 66 141 73 Received Heat Transfer 125 | . 76 31 18 Effects 2 | . 1 . 1 Energy Bleed 1 | . 1 . . Interference 1 | . . . 1 Siege Activations . | . . . . Robots Corrupted 1 | . . . 1 Combat Hostiles . | . . . . Parts Fried . | . . . . Impact Corruptions . | . . . . Robots Melted . | . . . . Combat Hostiles . | . . . . Parts Melted . | . . . . Heat Transferred 200 | . 100 . 100 Parts Sabotaged . | . . . . Parts Stolen . | . . . . Parts Stripped . | . . . . Power Chain Reactions 2 | . . . 2 Alert | -11 -10 -10 -9 ------- Run | Yrd Mat Sub Rec Peak Influence 539 | . 539 . 257 Initial 38 | . . . 38 Average 259 | . 367 . 163 Maximum Alert Level 2 | . 2 . 1 Low Security (%) 40 | 100 15 . 62 Level 1 30 | . 23 . 37 Level 2 29 | . 60 . . Level 3 . | . . . . Level 4 . | . . . . Level 5 . | . . . . High Security . | . . . . Max Security . | . . . . Squads Dispatched 2 | . 2 . . Investigation . | . . . . Extermination . | . . . . Reinforcement 2 | . 2 . . Assault . | . . . . Garrison . | . . . . Intercept . | . . . . Searches Triggered . | . . . . Construction Impeded . | . . . . Haulers Reinforced . | . . . . Active Scanning Responses . | . . . . Cargo Convoy Interrupts . | . . . . Stealth | -11 -10 -10 -9 --------- Run | Yrd Mat Sub Rec Distress Signals . | . . . . Communications Jammed . | . . . . Distress Signals . | . . . . Times Spotted 33 | . 19 8 6 Peak Tracking Total 4 | . 4 3 4 Tactical Retreats 6 | . 4 1 1 Traps | -11 -10 -10 -9 ------- Run | Yrd Mat Sub Rec Traps Triggered 2 | . 2 . . Indirectly . | . . . . Trap Hack Attempts . | . . . . Triggered . | . . . . Disarmed . | . . . . Reprogrammed . | . . . . Reused . | . . . . Traps Extracted . | . . . . Installed . | . . . . Triggered . | . . . . Machines | -11 -10 -10 -9 ---------- Run | Yrd Mat Sub Rec Machines Disabled 32 | . 17 . 15 Max in Single Turn 2 | . 2 . 2 Machines Repaired . | . . . . Machines Dismantled . | . . . . Machines Sabotaged . | . . . . Overloaded Fab Kills . | . . . . Hacking | -11 -10 -10 -9 --------- Run | Yrd Mat Sub Rec Machines Accessed 7 | . 1 1 5 Terminals 6 | . 1 . 5 Fabricators . | . . . . Repair Stations . | . . . . Recycling Units . | . . . . Scanalyzers . | . . . . Garrison Access . | . . . . Total Hacks 13 | . 2 1 10 Successful 5 | . 1 1 3 Failed 8 | . 1 . 7 Catastrophic 2 | . 1 . 1 Database Lockouts . | . . . . Manual 4 | . . 4 . Terminals 12 | . 2 . 10 Fabricators . | . . . . Repair Stations . | . . . . Recycling Units . | . . . . Scanalyzers . | . . . . Garrison Access . | . . . . Terminal Hacks 5 | . 1 1 3 Record 1 | . . 1 . Prototype ID Bank 1 | . 1 . . Branch Access Points 1 | . . . 1 Transport Status 1 | . . . 1 Zone Layout 1 | . . . 1 Fabricator Hacks . | . . . . Repair Station Hacks . | . . . . Recycling Unit Hacks . | . . . . Scanalyzer . | . . . . Garrison Access Hacks . | . . . . Unauthorized Hacks . | . . . . Terminals . | . . . . Fabricators . | . . . . Repair Stations . | . . . . Recycling Units . | . . . . Scanalyzers . | . . . . Garrison Access . | . . . . Data Cores Recovered . | . . . . Used . | . . . . Hacking Detections 4 | . 1 . 3 Full Trace Events . | . . . . Feedback Events . | . . . . Feedback Blocked . | . . . . Robot Schematics Acquired . | . . . . Robots Built . | . . . . Authchips . | . . . . Time . | . . . . Total Robot Build Rating . | . . . . Part Schematics Acquired . | . . . . Parts Built . | . . . . Authchips . | . . . . Time . | . . . . Total Part Build Rating . | . . . . Parts Repaired . | . . . . Time . | . . . . Parts Recycled . | . . . . Recycled Matter . | . . . . Retrieved Matter . | . . . . Retrieved Components . | . . . . Parts Scanalyzed . | . . . . Part Schematics Acquired . | . . . . Parts Damaged . | . . . . Bothacking | -11 -10 -10 -9 ------------ Run | Yrd Mat Sub Rec Used RIF Installer . | . . . . Robots Hacked . | . . . . Non-combat . | . . . . Combat . | . . . . Robot Hacks Applied . | . . . . Relay Couplers Released . | . . . . Fabnet Peak Effective % . | . . . . Robots Rewired . | . . . . Allies Hacked . | . . . . Hacks Repelled . | . . . . Allies | -11 -10 -10 -9 -------- Run | Yrd Mat Sub Rec Total Allies . | . . . . Largest Group . | . . . . Highest-Rated Group . | . . . . Highest-Rated Ally . | . . . . Total Orders . | . . . . Ally Attacks . | . . . . Total Damage . | . . . . Kills . | . . . . Allies Corrupted . | . . . . Allies Melted . | . . . . Intel | -11 -10 -10 -9 ------- Run | Yrd Mat Sub Rec Robot Analysis Total . | . . . . Derelict Logs Recovered . | . . . . Drone Launches . | . . . . Drone Recoveries . | . . . . Exploration | -11 -10 -10 -9 ------------- Run | Yrd Mat Sub Rec Turns Passed 2181 | 22 748 633 778 Spaces Moved 1766 | 25 528 565 648 Core . | . . . . Treads . | . . . . Legs . | . . . . Wheels 1766 | 25 528 565 648 Hover . | . . . . Flight . | . . . . Fastest Speed 90 | 90 90 90 90 Average Speed 90 | 90 90 90 90 Slowest Speed 90 | 90 90 90 90 Overloaded Moves . | . . . . Propulsion Burnouts . | . . . . Robots Hopped . | . . . . Cave-ins Triggered . | . . . . Exploration Rate (%) 48 | 3 68 33 91 Regions Visited 3 Branch Regions 2 Pre-discovered Areas . | . . . . Known Exits Taken . | . . . . Unknown Exits Taken 3 | 1 1 1 . Scrap Searched . | . . . . Spaces Dug 57 | . . . 57 Terrain Destroyed 431 | . 138 66 227 Melee . | . . . . Projectile . | . . . . AOE 431 | . 138 66 227 Terrain Rammed . | . . . . Walls Destroyed . | . . . . Machines Disabled . | . . . . Actions | -11 -10 -10 -9 --------- Run | Yrd Mat Sub Rec Total 2104 | 24 687 626 767 Wait 173 | . 91 21 61 Move 1763 | 24 527 564 648 Hop . | . . . . Pick Up 6 | . . 6 . Fast Attach . | . . . . Attach 1 | . . . 1 Detach . | . . . . Swap 9 | . 3 3 3 Drop . | . . . . Fire 151 | . 65 32 54 Melee . | . . . . Ram 1 | . 1 . . Kick . | . . . . Crush . | . . . . Escape Stasis . | . . . . Rewire . | . . . . Trap . | . . . . Miscellaneous . | . . . . Route ------- -11/Scrapyard -10/Materials (discovered 4 exits: [*Mat] / [*Min x2] / *Sub) -10/Subcaves -9/Recycling History --------- Turn | Location | Event 7 | -11/Scrapyard | Discovered new exit (range 12) 23 | -11/Scrapyard | Entered Materials 253 | -10/Materials | Discovered new exit (range 10) 310 | -10/Materials | Build established: Mutant 438 | -10/Materials | Discovered new exit (range 16) 591 | -10/Materials | Discovered new exit (range 6) 600 | -10/Materials | Derelicts attacked the area 664 | -10/Materials | Core integrity fell below 50% 749 | -10/Materials | Discovered new exit (range 10) 771 | -10/Materials | Entered Subcaves 782 | -10/Subcaves | A swath of the cavern ceiling suddenly collapsed 851 | -10/Subcaves | Core integrity fell below 20% 856 | -10/Subcaves | Ambushed by Subdweller buried in earth 923 | -10/Subcaves | Discovered new exit (range 14) 1181 | -10/Subcaves | Visited Clippyterm 1188 | -10/Subcaves | Build established: Subdweller-Mutant 1404 | -10/Subcaves | Entered Recycling 2182 | -9/Recycling | Destroyed by P-60 Hacker with Shock Rifle Last Messages --------------- 01965_ The unstable cave ceiling collapses. 01973_ System corrupted: Heat flow error (+185). 01977_ Overheating: System interference. 01977_ Lgt. EM Pulse Cannon temporarily disabled. 01977_ The unstable cave ceiling collapses. 01992_ R-06 Scavenger destroyed. 01996_ Acquired 44 matter. 02003_ The unstable cave ceiling collapses. 02036_ Acquired 52 matter. 02037_ The unstable cave ceiling collapses. 02057_ U-05 Engineer builds a Wall. 02073_ Chain reaction triggered in Lgt. Ion Engine. [Purchased: EM Pulse Gun] 02111_ R-06 Scavenger destroyed. 02120_ System corrupted: Component data lost. [DISCOUNT: For the next 148 turns enjoy 50% off any Launcher!] 02121_ Acquired 57 matter. 02164_ System corrupted: Matter fused (-9). 02180_ G-34 Mercenary springs to life. 02180_ Y-45 Defender springs to life. Map ----- +----------------------------------------------------+ | ?????# ######"""## # | | ?????# # # # | | ???### # # + | | ???# + ######### | | ???# # #??????# | | ???# # ##??????# | | ???### # #???????# | | ?????# # #???????# | | ???### # #???????# | | ???#"" ###### ####???????# | | ???#"Y "#??###??????????#%####### | | ???#" Y"#???????????????###????### | | ???### ""#???????????????????????## | | ?????# ###????????????????????????# | | ?????# #??????????????????????????? | | ?????# #??????????????????????????? | | ?????# #??????????????????????????? | | ?????# ###########????????????????? | | ?????# # #????????????????? | | ???### # #????????????????? | | ???#" # #????????????????? | | ???#"Y # #????????????????# | | ???#"" # #??????????????### | | ???### + ##?????????????# | | ?????# # #?????????????# | | ?????# # @ ##????????????# | | ?????# ### ##????????????# | | ?????# #?## #?????????????# | | ?????# #??#p #???????????# | | ?????# #?? Y ??????????# | | ?????# #?? b a sY #???????## | | ?????# #? #???????## # | | ?????# #? Y #????????# # | | ?????# +? a b a #????????# # | | ?????# # tu u #????????# | | ?????# # uY #????????# | | ?????# #?###########?????????###### | | ?????# #??????????????????????????? | | ?????# #??????????????????????????? | | ?????# ???????????????????????????? | | ????? ???????????????????????????? | | ?????# ???????????????????????????? | | ?????# ???????????????????????????? | | ?????# ???????????????????????????? | | ?????# ???????????????????????????? | | ?????? ???????????????????????????? | | ????????????????????????????????????? | | ????????????????????????????????????? | | ????????????????????????????????????? | | ????????????????????????????????????? | +----------------------------------------------------+ Best States ------------- Heat Dissipation 25 Energy Generation 10 Energy Capacity 250 Matter Stores 300 Matter Capacity 300 Sight Range 16 Terrain Scan Density 10 Armor Coverage 225 Core Shielding 20 Evasion (%) 42 Item Schematics ----------------- None Robot Schematics ------------------ None Fabricated ------------ Nothing Alien Tech Used ----------------- None Achievements -------------- None Challenges ------------ None Cogshop Purchases (18) ------------------------ Ion Engine (599) Arm. Wheel (769) Arm. Wheel (769) Lgt. EM Pulse Cannon (769) Lgt. EM Pulse Cannon (769) Med. Armor Plating (699) EM Shotgun (732) Shield Generator (725) Med. Armor Plating (666) Autogun (273) Shotgun (273) Shield Generator (783) Med. Armor Plating (758) Hvy. Assault Rifle (668) Grenade Launcher (Loot Box) Core Shielding (805) Rocket Launcher (979) EM Pulse Gun (740) Game ------ Seed AdvancedSmartbombChainsword Manual? 0 Play Time 00:23:54 Cumulative 36.6 hours Start 2024.05.15 @ 16:38:04 End 2024.05.15 @ 17:01:01 Sessions 1 Manual Loads 0 Difficulty Rogue Special Mode AFD2019/Pay2Buy Game No. 36 Rogue 36 Adventurer 0 Explorer 0 Win Type - Total 1 Types 1/0/0/0/0/0/0/0/0 Lore% 28 Gallery% 30 Achievement% 39 Wizard Run 0 Options --------- Layout 0 ASCII 0 Keyboard 0 Movement Mouse Keybinds 0 Fullscreen 2 Font 14/SmallcapsGlow Map View 36x27 Zoom Use 97% Tactical HUD 1 Map Filters NONE Filters NONE Steam 1 RUN: adc95cfd-b92b-4bae-8a49-97d1e22ddbf9